Workbook

Sheet Figure 9a
A1: alpha2 R/R mice (atopic dermatitis induced with oxazolone)
A2: scratching bouts per 10 min | H2: scratching bouts per 10 min
B3: vehicle | D3: TPA023B
A4: scratching bouts per 10 min | B4: mean | C4: SEM | D4: mean | E4: SEM | H4: Vehicle | I4: mouse 1 | J4: mouse 2 | K4: mouse 3 | L4: mouse 4 | M4: mouse 5 | N4: mouse 6 | O4: mean | P4: SEM
A5: 30 -40 | B5: =O5 -> 44.16666667 | C5: =P5 -> 13.69529522 | D5: =Q27 -> 0.25 | E5: =R27 -> 0.25 | H5: 30 -40 | I5: 42 | J5: 71 | K5: 61 | L5: 82 | M5: 9 | N5: 0 | O5: =AVERAGE(I5:N5) -> 44.16666667 | P5: =STDEV(I5:N5)/SQRT(COUNT(I5:N5)) -> 13.69529522
A6: 40 - 50 | B6: =O6 -> 33.33333333 | C6: =P6 -> 18.80366395 | D6: =Q28 -> 0.125 | E6: 0.125 | H6: 40 - 50 | I6: 4 | J6: 96 | K6: 89 | L6: 11 | M6: 0 | N6: 0 | O6: =AVERAGE(I6:N6) -> 33.33333333 | P6: =STDEV(I6:N6)/SQRT(COUNT(I6:N6)) -> 18.80366395
A7: 50 - 60 | B7: 20.83333333 | C7: 10.66901016 | D7: =Q29 -> 0 | E7: 0 | H7: 50 - 60 | I7: 23 | J7: 63 | K7: 39 | L7: 0 | M7: 0 | N7: 0 | O7: 20.83333333 | P7: 10.66901016
A8: 60 - 70 | B8: 7.5 | C8: 5.142956348 | D8: =Q30 -> 0.125 | E8: 0.125 | H8: 60 - 70 | I8: 31 | J8: 0 | K8: 13 | L8: 0 | M8: 0 | N8: 1 | O8: 7.5 | P8: 5.142956348
A9: 70 - 80 | B9: 25.83333333 | C9: 13.00106833 | D9: =Q31 -> 0.125 | E9: 0.125 | H9: 70 - 80 | I9: 25 | J9: 0 | K9: 65 | L9: 0 | M9: 0 | N9: 65 | O9: 25.83333333 | P9: 13.00106833
A10: 80 - 90 | B10: 18.66666667 | C10: 11.56911598 | D10: =Q32 -> 0.25 | E10: 0.25 | H10: 80 - 90 | I10: 75 | J10: 9 | K10: 12 | L10: 0 | M10: 16 | N10: 0 | O10: 18.66666667 | P10: 11.56911598
A11: 90 - 100 | B11: 26.5 | C11: 13.25581633 | D11: =Q33 -> 0.5 | E11: 0.3273268354 | H11: 90 - 100 | I11: 76 | J11: 0 | K11: 0 | L11: 53 | M11: 0 | N11: 30 | O11: 26.5 | P11: 13.25581633
A12: 100 - 110 | B12: 11 | C12: 6.889605697 | D12: =Q34 -> 0.125 | E12: 0.125 | H12: 100 - 110 | I12: 5 | J12: 0 | K12: 0 | L12: 42 | M12: 0 | N12: 19 | O12: 11 | P12: 6.889605697
A13: 110 - 120 | B13: 12.33333333 | C13: 5.713531696 | D13: =Q35 -> 0.125 | E13: 0.125 | H13: 110 - 120 | I13: 18 | J13: 28 | K13: 0 | L13: 28 | M13: 0 | N13: 0 | O13: 12.33333333 | P13: 5.713531696
A14: 120 - 130 | B14: 28.16666667 | C14: 13.82127989 | D14: =Q36 -> 0 | E14: 0 | H14: 120 - 130 | I14: 31 | J14: 71 | K14: 0 | L14: 67 | M14: 0 | N14: 0 | O14: 28.16666667 | P14: 13.82127989
A15: 130 - 140 | B15: 23.83333333 | C15: 13.00875773 | D15: =Q37 -> 0 | E15: 0 | H15: 130 - 140 | I15: 41 | J15: 80 | K15: 20 | L15: 0 | M15: 0 | N15: 2 | O15: 23.83333333 | P15: 13.00875773
A16: 140 - 150 | B16: 33.83333333 | C16: 16.55982421 | D16: =Q38 -> 0.25 | E16: 0.25 | H16: 140 - 150 | I16: 19 | J16: 102 | K16: 63 | L16: 0 | M16: 19 | N16: 0 | O16: 33.83333333 | P16: 16.55982421
A17: 150 - 160 | B17: 4.666666667 | C17: 3.702851754 | D17: =Q39 -> 1.25 | E17: 0.8398554297 | H17: 150 - 160 | I17: 0 | J17: 3 | K17: 2 | L17: 0 | M17: 23 | N17: 0 | O17: 4.666666667 | P17: 3.702851754
A18: 160 - 170 | B18: 8.666666667 | C18: 5.238744549 | D18: =Q40 -> 0 | E18: 0 | H18: 160 - 170 | I18: 0 | J18: 0 | K18: 32 | L18: 5 | M18: 15 | N18: 0 | O18: 8.666666667 | P18: 5.238744549
A19: 170 - 180 | B19: 28.66666667 | C19: 16.9305772 | D19: =Q41 -> 1.375 | E19: 1.375 | H19: 170 - 180 | I19: 8 | J19: 0 | K19: 79 | L19: 0 | M19: 85 | N19: 0 | O19: 28.66666667 | P19: 16.9305772
A20: 180 - 190 | B20: 30.5 | C20: 21.62059204 | D20: =Q42 -> 0.25 | E20: 0.25 | H20: 180 - 190 | I20: 1 | J20: 0 | K20: 130 | L20: 0 | M20: 52 | N20: 0 | O20: 30.5 | P20: 21.62059204
A21: 190 - 200 | B21: 7.666666667 | C21: 7.666666667 | D21: =Q43 -> 0 | E21: 0 | H21: 190 - 200 | I21: 0 | J21: 0 | K21: 46 | L21: 0 | M21: 0 | N21: 0 | O21: 7.666666667 | P21: 7.666666667
A22: 200 - 210 | B22: 5 | C22: 3.255764119 | D22: =Q44 -> 0.875 | E22: 0.875 | H22: 200 - 210 | I22: 0 | J22: 0 | K22: 0 | L22: 2 | M22: 8 | N22: 20 | O22: 5 | P22: 3.255764119
H23: mean | I23: =SUM(I5:I22) -> 399 | J23: 523 | K23: 651 | L23: 290 | M23: 227 | N23: 137
A25: total number of scratching bouts
A26: mouse | B26: vehicle | C26: TPA023B | H26: TPA023B | I26: mouse 1 | J26: mouse 2 | K26: mouse 3 | L26: mouse 4 | M26: mouse 5 | N26: mouse 6 | O26: mouse 7 | P26: mouse 8 | Q26: mean | R26: SEM
A27: 1 | B27: 399 | C27: 15 | H27: 30 -40 | I27: 0 | J27: 0 | K27: 0 | L27: 2 | M27: 0 | N27: 0 | O27: 0 | P27: 0 | Q27: =AVERAGE(I27:P27) -> 0.25 | R27: =STDEV(I27:P27)/SQRT(COUNT(I27:P27)) -> 0.25
A28: 2 | B28: 523 | C28: 0 | H28: 40 - 50 | I28: 0 | J28: 0 | K28: 0 | L28: 0 | M28: 0 | N28: 1 | O28: 0 | P28: 0 | Q28: =AVERAGE(I28:P28) -> 0.125 | R28: =STDEV(I28:P28)/SQRT(COUNT(I28:P28)) -> 0.125
A29: 3 | B29: 651 | C29: 1 | H29: 50 - 60 | I29: 0 | J29: 0 | K29: 0 | L29: 0 | M29: 0 | N29: 0 | O29: 0 | P29: 0 | Q29: 0 | R29: 0
A30: 4 | B30: 290 | C30: 9 | H30: 60 - 70 | I30: 0 | J30: 0 | K30: 0 | L30: 0 | M30: 0 | N30: 1 | O30: 0 | P30: 0 | Q30: 0.125 | R30: 0.125
A31: 5 | B31: 227 | C31: 2 | H31: 70 - 80 | I31: 0 | J31: 0 | K31: 1 | L31: 0 | M31: 0 | N31: 0 | O31: 0 | P31: 0 | Q31: 0.125 | R31: 0.125
A32: 6 | B32: 137 | C32: 10 | H32: 80 - 90 | I32: 0 | J32: 0 | K32: 0 | L32: 0 | M32: 0 | N32: 0 | O32: 0 | P32: 2 | Q32: 0.25 | R32: 0.25
A33: 7 | C33: 0 | H33: 90 - 100 | I33: 0 | J33: 0 | K33: 0 | L33: 0 | M33: 2 | N33: 0 | O33: 0 | P33: 2 | Q33: 0.5 | R33: 0.3273268354
A34: 8 | C34: 8 | H34: 100 - 110 | I34: 1 | J34: 0 | K34: 0 | L34: 0 | M34: 0 | N34: 0 | O34: 0 | P34: 0 | Q34: 0.125 | R34: 0.125
A35: avg | B35: =AVERAGE(B27:B32) -> 371.1666667 | C35: =AVERAGE(C27:C34) -> 5.625 | H35: 110 - 120 | I35: 1 | J35: 0 | K35: 0 | L35: 0 | M35: 0 | N35: 0 | O35: 0 | P35: 0 | Q35: 0.125 | R35: 0.125
A36: SEM | B36: =STDEV(B27:B32)/SQRT(6) -> 78.38810142 | C36: =STDEV(C27:C34)/SQRT(8) -> 1.990490787 | H36: 120 - 130 | I36: 0 | J36: 0 | K36: 0 | L36: 0 | M36: 0 | N36: 0 | O36: 0 | P36: 0 | Q36: 0 | R36: 0
H37: 130 - 140 | I37: 0 | J37: 0 | K37: 0 | L37: 0 | M37: 0 | N37: 0 | O37: 0 | P37: 0 | Q37: 0 | R37: 0
H38: 140 - 150 | I38: 0 | J38: 0 | K38: 0 | L38: 0 | M38: 0 | N38: 2 | O38: 0 | P38: 0 | Q38: 0.25 | R38: 0.25
H39: 150 - 160 | I39: 0 | J39: 0 | K39: 0 | L39: 0 | M39: 0 | N39: 6 | O39: 0 | P39: 4 | Q39: 1.25 | R39: 0.8398554297
H40: 160 - 170 | I40: 0 | J40: 0 | K40: 0 | L40: 0 | M40: 0 | N40: 0 | O40: 0 | P40: 0 | Q40: 0 | R40: 0
H41: 170 - 180 | I41: 11 | J41: 0 | K41: 0 | L41: 0 | M41: 0 | N41: 0 | O41: 0 | P41: 0 | Q41: 1.375 | R41: 1.375
H42: 180 - 190 | I42: 2 | J42: 0 | K42: 0 | L42: 0 | M42: 0 | N42: 0 | O42: 0 | P42: 0 | Q42: 0.25 | R42: 0.25
H43: 190 - 200 | I43: 0 | J43: 0 | K43: 0 | L43: 0 | M43: 0 | N43: 0 | O43: 0 | P43: 0 | Q43: 0 | R43: 0
H44: 200 - 210 | I44: 0 | J44: 0 | K44: 0 | L44: 7 | M44: 0 | N44: 0 | O44: 0 | P44: 0 | Q44: 0.875 | R44: 0.875
H45: mean | I45: =SUM(I27:I44) -> 15 | J45: =SUM(J27:J44) -> 0 | K45: 1 | L45: 9 | M45: 2 | N45: 10 | O45: 0 | P45: 8

Sheet 9c
A1: hoxB8a3 resc/resc mice (atopic dermatitis induced with oxazolone) | N1: scratching bouts per 10 min
A3: scratching bouts per 10 min | N3: wt vehicle | O3: mouse 1 | P3: mouse 2 | Q3: mouse 3 | R3: mouse 4 | S3: mouse 5 | T3: mouse 6 | U3: mouse 7 | V3: mouse 8 | W3: mean | X3: SEM | Z3: wt TPA023B | AA3: mouse 1 | AB3: mouse 2 | AC3: mouse 3 | AD3: mouse 4 | AE3: mouse 5 | AF3: mouse 6 | AG3: mouse 7 | AJ3: mean | AK3: SEM
B4: wt veh | D4: wt TPA023B | F4: a3-/- TPA023B | H4: hoxb8a3+/+ TPA023B | N4: 30 -40 | O4: 0 | P4: 0 | Q4: 0 | R4: 0 | S4: 6 | T4: 0 | U4: 1 | V4: 2 | W4: =AVERAGE(O4:V4) -> 1.125 | X4: =STDEV(O4:V4)/SQRT(8) -> 0.7425222459 | Z4: 30 -40 | AA4: 1 | AB4: 0 | AC4: 1 | AD4: 0 | AE4: 1 | AF4: 0 | AG4: 0 | AJ4: =AVERAGE(AA4:AH4) -> 0.4285714286 | AK4: =STDEV(AA4:AH4)/SQRT(7) -> 0.2020305089
A5: scratching bouts per 10 min | B5: mean | C5: SEM | D5: mean | E5: SEM | F5: mean | G5: SEM | H5: mean | I5: SEM | N5: 40 - 50 | O5: 0 | P5: 12 | Q5: 21 | R5: 0 | S5: 2 | T5: 0 | U5: 0 | V5: 4 | W5: 4.875 | X5: 2.721852704 | Z5: 40 - 50 | AA5: 0 | AB5: 0 | AC5: 1 | AD5: 0 | AE5: 0 | AF5: 0 | AG5: 1 | AJ5: =AVERAGE(AA5:AH5) -> 0.2857142857 | AK5: =STDEV(AA5:AH5)/SQRT(7) -> 0.1844277784
A6: 30 -40 | B6: =W4 -> 1.125 | C6: =X4 -> 0.7425222459 | D6: =AJ4 -> 0.4285714286 | E6: =AK4 -> 0.2020305089 | F6: =W26 -> 7.875 | G6: =X26 -> 3.061497649 | H6: =AJ26 -> 0.2222222222 | I6: =AK26 -> 0.1469861839 | N6: 50 - 60 | O6: 0 | P6: 1 | Q6: 9 | R6: 2 | S6: 2 | T6: 0 | U6: 10 | V6: 3 | W6: 3.375 | X6: 1.387926254 | Z6: 50 - 60 | AA6: 0 | AB6: 0 | AC6: 0 | AD6: 0 | AE6: 1 | AF6: 0 | AG6: 0 | AJ6: =AVERAGE(AA6:AH6) -> 0.1428571429 | AK6: =STDEV(AA6:AH6)/SQRT(7) -> 0.1428571429
A7: 40 - 50 | B7: =W5 -> 4.875 | C7: =X5 -> 2.721852704 | D7: =AJ5 -> 0.2857142857 | E7: =AK5 -> 0.1844277784 | F7: 8 | G7: 3.78908206 | H7: 0.5555555556 | I7: 0.4444444444 | N7: 60 - 70 | O7: 0 | P7: 10 | Q7: 14 | R7: 0 | S7: 7 | T7: 0 | U7: 0 | V7: 7 | W7: 4.75 | X7: 1.952562419 | Z7: 60 - 70 | AA7: 0 | AB7: 0 | AC7: 0 | AD7: 1 | AE7: 0 | AF7: 3 | AG7: 0 | AJ7: =AVERAGE(AA7:AH7) -> 0.5714285714 | AK7: =STDEV(AA7:AH7)/SQRT(7) -> 0.4285714286
A8: 50 - 60 | B8: 3.375 | C8: 1.387926254 | D8: =AJ6 -> 0.1428571429 | E8: =AK6 -> 0.1428571429 | F8: 4.125 | G8: 3.291968039 | H8: 0 | I8: 0 | N8: 70 - 80 | O8: 0 | P8: 0 | Q8: 11 | R8: 0 | S8: 13 | T8: 0 | U8: 0 | V8: 0 | W8: 3 | X8: 1.973032474 | Z8: 70 - 80 | AA8: 0 | AB8: 0 | AC8: 0 | AD8: 0 | AE8: 0 | AF8: 0 | AG8: 1 | AJ8: =AVERAGE(AA8:AH8) -> 0.1428571429 | AK8: =STDEV(AA8:AH8)/SQRT(7) -> 0.1428571429
A9: 60 - 70 | B9: 4.75 | C9: 1.952562419 | D9: =AJ7 -> 0.5714285714 | E9: =AK7 -> 0.4285714286 | F9: 0.25 | G9: 0.25 | H9: 0.1111111111 | I9: 0.1111111111 | N9: 80 - 90 | O9: 0 | P9: 0 | Q9: 10 | R9: 0 | S9: 9 | T9: 0 | U9: 0 | V9: 5 | W9: 3 | X9: 1.546886273 | Z9: 80 - 90 | AA9: 0 | AB9: 1 | AC9: 0 | AD9: 0 | AE9: 3 | AF9: 0 | AG9: 0 | AJ9: =AVERAGE(AA9:AH9) -> 0.5714285714 | AK9: =STDEV(AA9:AH9)/SQRT(7) -> 0.4285714286
A10: 70 - 80 | B10: 3 | C10: 1.973032474 | D10: =AJ8 -> 0.1428571429 | E10: =AK8 -> 0.1428571429 | F10: 0 | G10: 0 | H10: 0 | I10: 0 | N10: 90 - 100 | O10: 0 | P10: 15 | Q10: 13 | R10: 0 | S10: 0 | T10: 9 | U10: 0 | V10: 2 | W10: 4.875 | X10: 2.271229214 | Z10: 90 - 100 | AA10: 0 | AB10: 0 | AC10: 1 | AD10: 0 | AE10: 0 | AF10: 0 | AG10: 0 | AJ10: =AVERAGE(AA10:AH10) -> 0.1428571429 | AK10: =STDEV(AA10:AH10)/SQRT(7) -> 0.1428571429
A11: 80 - 90 | B11: 3 | C11: 1.546886273 | D11: =AJ9 -> 0.5714285714 | E11: =AK9 -> 0.4285714286 | F11: 0 | G11: 0 | H11: 0 | I11: 0 | N11: 100 - 110 | O11: 0 | P11: 0 | Q11: 11 | R11: 0 | S11: 0 | T11: 3 | U11: 0 | V11: 10 | W11: 3 | X11: 1.679710859 | Z11: 100 - 110 | AA11: 0 | AB11: 1 | AC11: 0 | AD11: 0 | AE11: 0 | AF11: 0 | AG11: 0 | AJ11: =AVERAGE(AA11:AH11) -> 0.1428571429 | AK11: =STDEV(AA11:AH11)/SQRT(7) -> 0.1428571429
A12: 90 - 100 | B12: 4.875 | C12: 2.271229214 | D12: =AJ10 -> 0.1428571429 | E12: =AK10 -> 0.1428571429 | F12: 0 | G12: 0 | H12: 0 | I12: 0 | N12: 110 - 120 | O12: 7 | P12: 0 | Q12: 1 | R12: 0 | S12: 0 | T12: 0 | U12: 5 | V12: 0 | W12: 1.625 | X12: 0.9808432961 | Z12: 110 - 120 | AA12: 0 | AB12: 0 | AC12: 0 | AD12: 1 | AE12: 0 | AF12: 0 | AG12: 0 | AJ12: =AVERAGE(AA12:AH12) -> 0.1428571429 | AK12: =STDEV(AA12:AH12)/SQRT(7) -> 0.1428571429
A13: 100 - 110 | B13: 3 | C13: 1.679710859 | D13: =AJ11 -> 0.1428571429 | E13: =AK11 -> 0.1428571429 | F13: 0.25 | G13: 0.25 | H13: 0 | I13: 0 | N13: 120 - 130 | O13: 0 | P13: 0 | Q13: 0 | R13: 0 | S13: 0 | T13: 0 | U13: 0 | V13: 0 | W13: 0 | X13: 0 | Z13: 120 - 130 | AA13: 0 | AB13: 0 | AC13: 0 | AD13: 0 | AE13: 0 | AF13: 0 | AG13: 0 | AJ13: =AVERAGE(AA13:AH13) -> 0 | AK13: =STDEV(AA13:AH13)/SQRT(7) -> 0
A14: 110 - 120 | B14: 1.625 | C14: 0.9808432961 | D14: =AJ12 -> 0.1428571429 | E14: =AK12 -> 0.1428571429 | F14: 0.875 | G14: 0.875 | H14: 0 | I14: 0 | N14: 130 - 140 | O14: 0 | P14: 0 | Q14: 0 | R14: 1 | S14: 0 | T14: 0 | U14: 0 | V14: 0 | W14: 0.125 | X14: 0.125 | Z14: 130 - 140 | AA14: 0 | AB14: 0 | AC14: 1 | AD14: 0 | AE14: 0 | AF14: 0 | AG14: 0 | AJ14: =AVERAGE(AA14:AH14) -> 0.1428571429 | AK14: =STDEV(AA14:AH14)/SQRT(7) -> 0.1428571429
A15: 120 - 130 | B15: 0 | C15: 0 | D15: =AJ13 -> 0 | E15: =AK13 -> 0 | F15: 2.5 | G15: 1.647508942 | H15: 0 | I15: 0 | N15: 140 - 150 | O15: 0 | P15: 0 | Q15: 0 | R15: 5 | S15: 0 | T15: 2 | U15: 0 | V15: 0 | W15: 0.875 | X15: 0.6391260774 | Z15: 140 - 150 | AA15: 0 | AB15: 0 | AC15: 0 | AD15: 0 | AE15: 0 | AF15: 0 | AG15: 0 | AJ15: =AVERAGE(AA15:AH15) -> 0 | AK15: =STDEV(AA15:AH15)/SQRT(7) -> 0
A16: 130 - 140 | B16: 0.125 | C16: 0.125 | D16: =AJ14 -> 0.1428571429 | E16: =AK14 -> 0.1428571429 | F16: 2 | G16: 1.475998451 | H16: 0.2222222222 | I16: 0.2222222222 | N16: 150 - 160 | O16: 0 | P16: 0 | Q16: 0 | R16: 0 | S16: 0 | T16: 0 | U16: 0 | V16: 0 | W16: 0 | X16: 0 | Z16: 150 - 160 | AA16: 0 | AB16: 0 | AC16: 0 | AD16: 0 | AE16: 0 | AF16: 0 | AG16: 0 | AJ16: =AVERAGE(AA16:AH16) -> 0 | AK16: =STDEV(AA16:AH16)/SQRT(7) -> 0
A17: 140 - 150 | B17: 0.875 | C17: 0.6391260774 | D17: =AJ15 -> 0 | E17: =AK15 -> 0 | F17: 4.5 | G17: 4.221543387 | H17: 0 | I17: 0 | N17: 160 - 170 | O17: 0 | P17: 0 | Q17: 0 | R17: 0 | S17: 0 | T17: 0 | U17: 0 | V17: 4 | W17: 0.5 | X17: 0.5 | Z17: 160 - 170 | AA17: 0 | AB17: 1 | AC17: 0 | AD17: 0 | AE17: 0 | AF17: 0 | AG17: 0 | AJ17: =AVERAGE(AA17:AH17) -> 0.1428571429 | AK17: =STDEV(AA17:AH17)/SQRT(7) -> 0.1428571429
A18: 150 - 160 | B18: 0 | C18: 0 | D18: =AJ16 -> 0 | E18: =AK16 -> 0 | F18: 2.375 | G18: 2.375 | H18: 0.2222222222 | I18: 0.2222222222 | N18: 170 - 180 | O18: 0 | P18: 0 | Q18: 0 | R18: 0 | S18: 0 | T18: 0 | U18: 0 | V18: 0 | W18: 0 | X18: 0 | Z18: 170 - 180 | AA18: 0 | AB18: 0 | AC18: 0 | AD18: 0 | AE18: 0 | AF18: 0 | AG18: 0 | AJ18: =AVERAGE(AA18:AH18) -> 0 | AK18: =STDEV(AA18:AH18)/SQRT(7) -> 0
A19: 160 - 170 | B19: 0.5 | C19: 0.5 | D19: =AJ17 -> 0.1428571429 | E19: =AK17 -> 0.1428571429 | F19: 1.125 | G19: 1.125 | H19: 0 | I19: 0 | N19: 180 - 190 | O19: 0 | P19: 0 | Q19: 0 | R19: 0 | S19: 0 | T19: 0 | U19: 0 | V19: 0 | W19: 0 | X19: 0 | Z19: 180 - 190 | AA19: 0 | AB19: 0 | AC19: 0 | AD19: 0 | AE19: 0 | AF19: 0 | AG19: 0 | AJ19: =AVERAGE(AA19:AH19) -> 0 | AK19: =STDEV(AA19:AH19)/SQRT(7) -> 0
A20: 170 - 180 | B20: 0 | C20: 0 | D20: =AJ18 -> 0 | E20: =AK18 -> 0 | F20: 0 | G20: 0 | H20: 0 | I20: 0 | N20: 190 - 200 | O20: 0 | P20: 0 | Q20: 0 | R20: 0 | S20: 0 | T20: 0 | U20: 0 | V20: 0 | W20: 0 | X20: 0 | Z20: 190 - 200 | AA20: 0 | AB20: 0 | AC20: 0 | AD20: 0 | AE20: 0 | AF20: 0 | AG20: 0 | AJ20: =AVERAGE(AA20:AH20) -> 0 | AK20: =STDEV(AA20:AH20)/SQRT(7) -> 0
A21: 180 - 190 | B21: 0 | C21: 0 | D21: =AJ19 -> 0 | E21: =AK19 -> 0 | F21: 0 | G21: 0 | H21: 0.4444444444 | I21: 0.3379312517 | N21: 200 - 210 | O21: 0 | P21: 0 | Q21: 0 | R21: 0 | S21: 3 | T21: 0 | U21: 0 | V21: 0 | W21: 0.375 | X21: 0.375 | Z21: 200 - 210 | AA21: 0 | AB21: 0 | AC21: 0 | AD21: 0 | AE21: 0 | AF21: 0 | AG21: 0 | AJ21: =AVERAGE(AA21:AH21) -> 0 | AK21: =STDEV(AA21:AH21)/SQRT(7) -> 0
A22: 190 - 200 | B22: 0 | C22: 0 | D22: =AJ20 -> 0 | E22: =AK20 -> 0 | F22: 0 | G22: 0 | H22: 0.2222222222 | I22: 0.2222222222 | N22: sum | O22: =SUM(O4:O21) -> 7 | P22: =SUM(P4:P21) -> 38 | Q22: =SUM(Q4:Q21) -> 90 | R22: =SUM(R4:R21) -> 8 | S22: =SUM(S4:S21) -> 42 | T22: =SUM(T4:T21) -> 14 | U22: =SUM(U4:U21) -> 16 | V22: =SUM(V4:V21) -> 37 | Z22: sum | AA22: =SUM(AA4:AA21) -> 1 | AB22: =SUM(AB4:AB21) -> 3 | AC22: 4 | AD22: 2 | AE22: 5 | AF22: 3 | AG22: 2
A23: 200 - 210 | B23: 0.375 | C23: 0.375 | D23: =AJ21 -> 0 | E23: =AK21 -> 0 | F23: 0 | G23: 0 | H23: 0 | I23: 0
N25: α3-/- TPA023B | O25: mouse 1 | P25: mouse 2 | Q25: mouse 3 | R25: mouse 4 | S25: mouse 5 | T25: mouse 6 | U25: mouse 7 | V25: mouse 8 | W25: mean | X25: SEM | Z25: hoxB8α3 resc/resc TPA023B | AA25: mouse 1 | AB25: mouse 2 | AC25: mouse 3 | AD25: mouse 4 | AE25: mouse 5 | AF25: mouse 6 | AG25: mouse 7 | AH25: mouse 8 | AI25: mouse 9 | AJ25: mean | AK25: SEM
A26: total number of scratching bouts | N26: 30 -40 | O26: 0 | P26: 1 | Q26: 10 | R26: 9 | S26: 27 | T26: 5 | U26: 2 | V26: 9 | W26: =AVERAGE(O26:V26) -> 7.875 | X26: =STDEV(O26:V26)/SQRT(8) -> 3.061497649 | Z26: 30 -40 | AA26: 0 | AB26: 0 | AC26: 0 | AD26: 0 | AE26: 0 | AF26: 0 | AG26: 1 | AH26: 1 | AI26: 0 | AJ26: =AVERAGE(AA26:AI26) -> 0.2222222222 | AK26: =STDEV(AA26:AI26)/SQRT(9) -> 0.1469861839
B27: wt | C27: wt | D27: a3-/- | E27: hoxB8a3+/+ | N27: 40 - 50 | O27: 0 | P27: 0 | Q27: 0 | R27: 0 | S27: 15 | T27: 29 | U27: 5 | V27: 15 | W27: 8 | X27: 3.78908206 | Z27: 40 - 50 | AA27: 0 | AB27: 0 | AC27: 0 | AD27: 0 | AE27: 0 | AF27: 1 | AG27: 4 | AH27: 0 | AI27: 0 | AJ27: =AVERAGE(AA27:AI27) -> 0.5555555556 | AK27: =STDEV(AA27:AI27)/SQRT(9) -> 0.4444444444
A28: mouse | B28: vehicle | C28: TPA023B | D28: TPA023B | E28: TPA023B | N28: 50 - 60 | O28: 0 | P28: 0 | Q28: 0 | R28: 0 | S28: 1 | T28: 3 | U28: 2 | V28: 27 | W28: 4.125 | X28: 3.291968039 | Z28: 50 - 60 | AA28: 0 | AB28: 0 | AC28: 0 | AD28: 0 | AE28: 0 | AF28: 0 | AG28: 0 | AH28: 0 | AI28: 0 | AJ28: 0 | AK28: 0
A29: 1 | B29: =O22 -> 7 | C29: =AA22 -> 1 | D29: =O44 -> 55 | E29: =AA44 -> 0 | N29: 60 - 70 | O29: 0 | P29: 0 | Q29: 0 | R29: 0 | S29: 0 | T29: 0 | U29: 0 | V29: 2 | W29: 0.25 | X29: 0.25 | Z29: 60 - 70 | AA29: 0 | AB29: 0 | AC29: 0 | AD29: 0 | AE29: 0 | AF29: 0 | AG29: 1 | AH29: 0 | AI29: 0 | AJ29: 0.1111111111 | AK29: 0.1111111111
A30: 2 | B30: =P22 -> 38 | C30: =AB22 -> 3 | D30: =P44 -> 3 | E30: =AB44 -> 3 | N30: 70 - 80 | O30: 0 | P30: 0 | Q30: 0 | R30: 0 | S30: 0 | T30: 0 | U30: 0 | V30: 0 | W30: 0 | X30: 0 | Z30: 70 - 80 | AA30: 0 | AB30: 0 | AC30: 0 | AD30: 0 | AE30: 0 | AF30: 0 | AG30: 0 | AH30: 0 | AI30: 0 | AJ30: 0 | AK30: 0
A31: 3 | B31: =Q22 -> 90 | C31: =AC22 -> 4 | D31: =Q44 -> 10 | E31: =AC44 -> 0 | N31: 80 - 90 | O31: 0 | P31: 0 | Q31: 0 | R31: 0 | S31: 0 | T31: 0 | U31: 0 | V31: 0 | W31: 0 | X31: 0 | Z31: 80 - 90 | AA31: 0 | AB31: 0 | AC31: 0 | AD31: 0 | AE31: 0 | AF31: 0 | AG31: 0 | AH31: 0 | AI31: 0 | AJ31: 0 | AK31: 0
A32: 4 | B32: =R22 -> 8 | C32: =AD22 -> 2 | D32: =R44 -> 9 | E32: =AD44 -> 0 | N32: 90 - 100 | O32: 0 | P32: 0 | Q32: 0 | R32: 0 | S32: 0 | T32: 0 | U32: 0 | V32: 0 | W32: 0 | X32: 0 | Z32: 90 - 100 | AA32: 0 | AB32: 0 | AC32: 0 | AD32: 0 | AE32: 0 | AF32: 0 | AG32: 0 | AH32: 0 | AI32: 0 | AJ32: 0 | AK32: 0
A33: 5 | B33: =S22 -> 42 | C33: =AE22 -> 5 | D33: =S44 -> 44 | E33: =AE44 -> 0 | N33: 100 - 110 | O33: 0 | P33: 0 | Q33: 0 | R33: 0 | S33: 0 | T33: 0 | U33: 0 | V33: 2 | W33: 0.25 | X33: 0.25 | Z33: 100 - 110 | AA33: 0 | AB33: 0 | AC33: 0 | AD33: 0 | AE33: 0 | AF33: 0 | AG33: 0 | AH33: 0 | AI33: 0 | AJ33: 0 | AK33: 0
A34: 6 | B34: =T22 -> 14 | C34: =AF22 -> 3 | D34: =T44 -> 86 | E34: =AF44 -> 4 | N34: 110 - 120 | O34: 0 | P34: 0 | Q34: 0 | R34: 0 | S34: 0 | T34: 7 | U34: 0 | V34: 0 | W34: 0.875 | X34: 0.875 | Z34: 110 - 120 | AA34: 0 | AB34: 0 | AC34: 0 | AD34: 0 | AE34: 0 | AF34: 0 | AG34: 0 | AH34: 0 | AI34: 0 | AJ34: 0 | AK34: 0
A35: 7 | B35: =U22 -> 16 | C35: =AG22 -> 2 | D35: =U44 -> 9 | E35: =AG44 -> 10 | N35: 120 - 130 | O35: 9 | P35: 0 | Q35: 0 | R35: 0 | S35: 0 | T35: 11 | U35: 0 | V35: 0 | W35: 2.5 | X35: 1.647508942 | Z35: 120 - 130 | AA35: 0 | AB35: 0 | AC35: 0 | AD35: 0 | AE35: 0 | AF35: 0 | AG35: 0 | AH35: 0 | AI35: 0 | AJ35: 0 | AK35: 0
A36: 8 | B36: =V22 -> 37 | D36: =V44 -> 55 | E36: =AH44 -> 1 | N36: 130 - 140 | O36: 12 | P36: 0 | Q36: 0 | R36: 0 | S36: 1 | T36: 3 | U36: 0 | V36: 0 | W36: 2 | X36: 1.475998451 | Z36: 130 - 140 | AA36: 0 | AB36: 0 | AC36: 0 | AD36: 0 | AE36: 0 | AF36: 0 | AG36: 2 | AH36: 0 | AI36: 0 | AJ36: 0.2222222222 | AK36: 0.2222222222
A37: 9 | E37: =AI44 -> 0 | N37: 140 - 150 | O37: 34 | P37: 2 | Q37: 0 | R37: 0 | S37: 0 | T37: 0 | U37: 0 | V37: 0 | W37: 4.5 | X37: 4.221543387 | Z37: 140 - 150 | AA37: 0 | AB37: 0 | AC37: 0 | AD37: 0 | AE37: 0 | AF37: 0 | AG37: 0 | AH37: 0 | AI37: 0 | AJ37: 0 | AK37: 0
A38: avg | B38: =AVERAGE(B29:B37) -> 31.5 | C38: =AVERAGE(C29:C37) -> 2.857142857 | D38: =AVERAGE(D29:D37) -> 33.875 | E38: =AVERAGE(E29:E37) -> 2 | N38: 150 - 160 | O38: 0 | P38: 0 | Q38: 0 | R38: 0 | S38: 0 | T38: 19 | U38: 0 | V38: 0 | W38: 2.375 | X38: 2.375 | Z38: 150 - 160 | AA38: 0 | AB38: 0 | AC38: 0 | AD38: 0 | AE38: 0 | AF38: 0 | AG38: 2 | AH38: 0 | AI38: 0 | AJ38: 0.2222222222 | AK38: 0.2222222222
A39: SEM | B39: =STDEV(B29:B37)/SQRT(8) -> 9.732126474 | C39: =STDEV(C29:C37)/SQRT(7) -> 0.5084322977 | D39: =STDEV(D29:D37)/SQRT(8) -> 10.75114197 | E39: =STDEV(E29:E37)/SQRT(9) -> 1.118033989 | N39: 160 - 170 | O39: 0 | P39: 0 | Q39: 0 | R39: 0 | S39: 0 | T39: 9 | U39: 0 | V39: 0 | W39: 1.125 | X39: 1.125 | Z39: 160 - 170 | AA39: 0 | AB39: 0 | AC39: 0 | AD39: 0 | AE39: 0 | AF39: 0 | AG39: 0 | AH39: 0 | AI39: 0 | AJ39: 0 | AK39: 0
N40: 170 - 180 | O40: 0 | P40: 0 | Q40: 0 | R40: 0 | S40: 0 | T40: 0 | U40: 0 | V40: 0 | W40: 0 | X40: 0 | Z40: 170 - 180 | AA40: 0 | AB40: 0 | AC40: 0 | AD40: 0 | AE40: 0 | AF40: 0 | AG40: 0 | AH40: 0 | AI40: 0 | AJ40: 0 | AK40: 0
N41: 180 - 190 | O41: 0 | P41: 0 | Q41: 0 | R41: 0 | S41: 0 | T41: 0 | U41: 0 | V41: 0 | W41: 0 | X41: 0 | Z41: 180 - 190 | AA41: 0 | AB41: 3 | AC41: 0 | AD41: 0 | AE41: 0 | AF41: 1 | AG41: 0 | AH41: 0 | AI41: 0 | AJ41: 0.4444444444 | AK41: 0.3379312517
A42: total time spent biting (s) | N42: 190 - 200 | O42: 0 | P42: 0 | Q42: 0 | R42: 0 | S42: 0 | T42: 0 | U42: 0 | V42: 0 | W42: 0 | X42: 0 | Z42: 190 - 200 | AA42: 0 | AB42: 0 | AC42: 0 | AD42: 0 | AE42: 0 | AF42: 2 | AG42: 0 | AH42: 0 | AI42: 0 | AJ42: 0.2222222222 | AK42: 0.2222222222
B43: wt | C43: wt | D43: a3-/- | E43: hoxB8a3+/+ | N43: 200 - 210 | O43: 0 | P43: 0 | Q43: 0 | R43: 0 | S43: 0 | T43: 0 | U43: 0 | V43: 0 | W43: 0 | X43: 0 | Z43: 200 - 210 | AA43: 0 | AB43: 0 | AC43: 0 | AD43: 0 | AE43: 0 | AF43: 0 | AG43: 0 | AH43: 0 | AI43: 0 | AJ43: 0 | AK43: 0
A44: mouse | B44: vehicle | C44: TPA023B | D44: TPA023B | E44: TPA023B | N44: sum | O44: =SUM(O26:O43) -> 55 | P44: =SUM(P26:P43) -> 3 | Q44: 10 | R44: 9 | S44: 44 | T44: 86 | U44: 9 | V44: 55 | Z44: sum | AA44: =SUM(AA26:AA43) -> 0 | AB44: =SUM(AB26:AB43) -> 3 | AC44: 0 | AD44: 0 | AE44: 0 | AF44: 4 | AG44: 10 | AH44: 1 | AI44: 0
A45: 1 | B45: 201 | C45: 101 | D45: 110 | E45: 0
A46: 2 | B46: 1120 | C46: 92 | D46: 914 | E46: 10
A47: 3 | B47: 1434 | C47: 292 | D47: 219 | E47: 234
A48: 4 | B48: 412 | C48: 6 | D48: 655 | E48: 197
A49: 5 | B49: 1089 | C49: 162 | D49: 176 | E49: 221
A50: 6 | B50: 157 | C50: 65 | D50: 482 | E50: 193
A51: 7 | B51: 1321 | C51: 103 | D51: 796 | E51: 86
A52: 8 | B52: 656 | D52: 43 | E52: 10
A53: 9 | E53: 70
A54: avg | B54: =AVERAGE(B45:B53) -> 798.75 | C54: =AVERAGE(C45:C53) -> 117.2857143 | D54: =AVERAGE(D45:D53) -> 424.375 | E54: =AVERAGE(E45:E53) -> 113.4444444
A55: SEM | B55: =STDEV(B45:B53)/SQRT(8) -> 179.4254471 | C55: =STDEV(C45:C53)/SQRT(7) -> 34.06975637 | D55: =STDEV(D45:D53)/SQRT(8) -> 118.2078885 | E55: =STDEV(E45:E53)/SQRT(9) -> 32.55854177
